bitfinex/quotes_ETHUSD_20250223
["timestamp","ask_amount","ask_price","bid_price","bid_amount"]
[1740316119285,3.6729667,2806.2,2805.7,0.72394379]
[1740316119686,4.39476991,2806.2,2805.7,0.72394379]
[1740316121185,3.6729667,2806.2,2805.7,0.72394379]
[1740316121353,3.6729667,2806.2,2805.2,0.5347964]
[1740316121748,0.8198,2807.0,2805.3,0.7761]
[1740316121986,1.31400434,2807.0,2805.4,0.7761]
[1740316122293,1.31400434,2807.0,2805.4,3.7761]
[1740316122490,0.8198,2807.0,2805.4,3.7761]
[1740316122690,0.8198,2807.0,2805.5,0.8288]
[1740316123976,0.8198,2807.0,2805.7,0.8288]
[1740316124154,0.8198,2807.0,2806.2,0.27407561]
[1740316124347,0.7829,2807.6,2806.3,3.269]
[1740316125089,0.7829,2807.6,2806.8,0.70903005]
[1740316127318,0.7829,2807.6,2806.6,0.268]
[1740316127893,0.7829,2807.6,2806.4,0.268]
[1740316128824,0.55,2807.5,2806.3,3.0]
[1740316128996,0.8269,2807.4,2806.3,3.268]
[1740316129316,0.8269,2807.4,2806.7,0.70267839]
[1740316129517,4.4998667,2807.4,2806.7,0.70267839]
[1740316130922,0.8269,2807.3,2806.7,0.70267839]
[1740316131518,0.8269,2807.3,2806.2,0.27407561]
[1740316132914,0.55,2807.0,2805.8,0.268]
[1740316133083,0.8269,2806.9,2805.8,0.268]
[1740316133412,0.8269,2806.8,2805.8,0.5948]
[1740316133792,0.8269,2806.8,2805.8,0.268]
[1740316135029,0.8269,2806.8,2806.2,0.71956252]
[1740316137490,0.8269,2806.8,2806.2,0.66956252]
[1740316139192,0.8269,2806.8,2806.0,0.8318]
[1740316140238,0.8269,2806.8,2806.0,3.8318]
[1740316140411,0.8269,2807.2,2806.0,3.8318]
[1740316140999,0.8269,2807.2,2806.0,9.2218]
[1740316143721,0.8269,2807.2,2806.6,0.27043153]
[1740316143922,0.8269,2807.2,2806.6,0.22043153]
[1740316144124,0.8269,2807.2,2806.6,0.48743153]
[1740316144897,0.8269,2807.2,2806.6,1.31723153]
[1740316145097,0.8269,2807.2,2806.6,0.48743153]
[1740316146837,0.8269,2807.2,2806.6,0.22043153]
[1740316147042,0.8269,2807.2,2806.6,0.48743153]
[1740316147252,0.8269,2807.2,2806.0,9.2064]
[1740316147402,0.8269,2807.2,2806.3,0.267]
[1740316148009,0.8269,2807.2,2806.0,9.2064]
[1740316148211,0.8269,2807.2,2806.1,0.267]
[1740316150952,0.8269,2807.2,2806.0,8.39]
[1740316151144,0.8269,2807.2,2806.0,8.656]
[1740316152633,0.8269,2807.2,2806.0,8.39]
[1740316152850,0.55,2807.3,2806.0,8.39]
[1740316153023,0.55,2807.1,2806.0,8.39]
[1740316153223,0.8011,2807.0,2805.8,3.2623182]
[1740316153450,0.8011,2807.0,2805.9,0.35283182]
[1740316153757,0.8011,2807.0,2805.8,0.2623182]
[1740316156819,0.8011,2806.9,2805.8,0.2623182]
[1740316167983,0.8011,2806.9,2805.8,3.2623182]
[1740316168192,0.8011,2806.9,2805.9,0.8184]
[1740316170488,0.8011,2806.9,2806.0,3.0]
[1740316171081,0.763,2808.2,2806.4,0.8184]
[1740316171391,0.763,2808.2,2806.9,0.8184]
[1740316171773,0.763,2808.2,2807.0,3.0]
[1740316171973,0.763,2808.2,2807.0,8.39]
[1740316172290,0.763,2808.2,2807.1,0.8184]
[1740316173074,0.763,2808.2,2807.2,0.55]
[1740316173408,0.763,2808.2,2808.1,0.7097826]
[1740316175794,0.763,2808.6,2808.1,0.7097826]
[1740316180676,0.69658166,2808.7,2808.1,0.7097826]
[1740316181009,0.763,2809.0,2808.0,0.8184]
[1740316181889,0.763,2809.0,2808.1,0.264]
[1740316183452,0.763,2809.0,2808.4,0.26514908]
[1740316191044,3.6729667,2809.3,2808.4,0.26514908]
[1740316191243,4.4842667,2809.3,2808.5,0.7721]
[1740316191545,0.8113,2809.3,2808.5,0.7721]
[1740316192264,0.71044854,2809.4,2808.8,0.70624217]
[1740316192436,0.8113,2809.5,2808.8,0.70624217]
[1740316192618,0.55,2809.6,2808.8,1.47834217]
[1740316192819,0.55,2809.6,2808.8,0.7721]
[1740316193266,0.55,2809.6,2808.5,0.7721]
[1740316193464,0.8113,2809.4,2808.6,0.263]
[1740316194652,0.55,2809.6,2808.6,0.263]
[1740316195478,0.72064364,2809.2,2808.8,0.70189322]
[1740316196187,0.72064364,2809.2,2808.8,1.49339322]
[1740316196371,0.55,2809.6,2808.9,0.7915]
[1740316197439,0.55,2809.6,2809.0,0.7559]
[1740316198054,0.1498893,2809.9,2809.6,0.7915]
[1740316198280,0.1498893,2809.9,2809.8,0.7915]
[1740316198463,4.995,2811.0,2809.9,0.7915]
[1740316198664,5.7509,2811.0,2810.0,0.64315]
[1740316198836,4.995,2811.0,2810.1,0.7915]
[1740316199043,4.995,2811.0,2810.1,0.2415]
[1740316199253,4.995,2811.0,2810.3,3.26700101]
[1740316199459,4.995,2811.0,2810.3,0.26700101]
[1740316199655,4.995,2811.0,2810.4,0.55]
[1740316199856,4.895,2811.0,2810.4,0.55]
[1740316200149,4.0041949,2811.0,2810.6,3.55]
[1740316200348,4.0041949,2811.0,2810.7,1.04111467]
[1740316200549,3.1133898,2811.0,2810.9,3.55]
[1740316200742,2.2225847,2811.0,2810.9,4.08359585]
[1740316200943,2.2225847,2811.0,2810.9,3.53359585]
[1740316200944,1.3317796,2811.0,2810.9,3.53359585]
[1740316201274,0.4409745,2811.0,2810.9,1.884698]
[1740316201475,0.4409745,2811.0,2810.9,9.67673093]
[1740316201786,0.01,2811.7,2811.0,4.08359585]
[1740316202089,0.01,2811.7,2811.1,0.7915]
[1740316202245,0.01,2811.7,2811.3,3.0]
[1740316202441,0.01,2811.7,2811.5,3.0]
[1740316202647,0.01,2811.7,2811.6,0.7924]
[1740316202871,0.01,2811.7,2811.6,18.6324]
[1740316203092,0.00382395,2812.2,2811.8,0.55]
[1740316203245,0.00382395,2812.2,2812.0,3.0]
[1740316203451,0.00382395,2812.2,2812.1,0.267]
[1740316203850,0.00382395,2812.2,2812.1,0.27167838]
[1740316204048,0.00382395,2812.2,2811.9,0.26057312]
[1740316204591,0.10371325,2812.6,2812.0,0.7924]
[1740316204749,0.10371325,2812.6,2812.2,3.0]
[1740316205258,0.10371325,2812.6,2812.1,5.39]
[1740316205470,0.6605,2812.5,2811.8,0.268]
[1740316205903,0.6605,2812.5,2811.3,0.7924]
[1740316206056,0.6605,2812.5,2811.3,0.26129389]
[1740316206257,0.6605,2812.5,2811.3,3.26129389]
[1740316206795,0.6605,2812.5,2811.3,0.26129389]
[1740316206997,0.6605,2812.5,2810.9,1.861118]
[1740316207167,0.6605,2812.5,2810.8,0.269]
[1740316207350,0.55,2812.4,2810.8,0.269]
[1740316207690,0.55,2812.5,2810.6,1.0431]
[1740316207990,3.6729667,2812.4,2810.8,0.26046634]
[1740316208151,3.6729667,2812.4,2810.9,0.7741]
[1740316208584,0.7936,2812.3,2810.8,0.26046634]
[1740316209784,3.6729667,2812.2,2810.7,0.26834146]
[1740316209992,0.7936,2812.1,2810.7,0.269]
[1740316210185,0.7936,2811.9,2810.7,0.269]
[1740316210489,4.4665667,2811.9,2810.7,0.269]
[1740316210786,0.7936,2811.8,2810.7,0.269]
[1740316213891,0.7936,2811.8,2810.4,0.269]
[1740316213892,0.7936,2811.7,2810.4,0.269]
[1740316214279,0.7936,2811.6,2810.1,0.269]
[1740316214483,0.7936,2811.4,2810.2,0.59239388]
[1740316215257,0.7936,2811.4,2810.0,5.92393875]
[1740316215485,0.7936,2811.4,2810.0,5.39]
[1740316215994,0.7936,2811.4,2810.1,3.0]
[1740316217796,0.7936,2811.4,2810.0,5.39]
[1740316218471,0.7936,2811.4,2810.1,3.0]
[1740316218679,0.7936,2811.4,2810.2,0.7741]
[1740316219962,0.7936,2811.4,2810.1,3.0]
[1740316221190,0.7936,2811.4,2810.1,4.069031]
[1740316221919,0.7936,2811.4,2810.1,3.0]
[1740316222103,0.7936,2811.4,2810.1,3.27]
[1740316222524,0.7936,2811.4,2810.1,3.0]
[1740316223921,4.5486,2811.4,2810.1,3.0]
[1740316224220,0.8028,2811.5,2810.1,3.0]
[1740316225118,0.8028,2811.5,2810.2,0.8028]
[1740316226342,0.8028,2811.5,2810.1,3.0]
[1740316226925,0.8028,2811.5,2810.2,0.271]
[1740316227607,0.8028,2811.5,2810.3,0.7925]
[1740316228331,0.8028,2811.5,2810.4,1.068943]
[1740316228526,0.8028,2811.5,2810.3,0.7925]
[1740316229027,0.8028,2811.5,2810.3,1.861443]
[1740316229343,0.8028,2811.5,2810.4,0.2132443]
[1740316230709,0.8028,2811.5,2810.5,0.27]
[1740316231204,0.8028,2811.5,2810.9,0.26583658]
[1740316231966,0.8028,2811.5,2810.9,6.44833658]
[1740316232106,3.6729667,2812.5,2811.0,3.0]
[1740316232302,0.8332,2812.5,2811.2,0.7925]
[1740316232608,0.8332,2812.5,2811.3,0.271]
[1740316232806,0.8332,2812.5,2811.3,5.661]
[1740316234842,0.8332,2812.5,2811.4,3.0]
[1740316235222,0.8332,2812.5,2811.3,5.66]
[1740316235766,3.6729667,2812.4,2810.9,0.26583658]
[1740316236069,0.8332,2812.2,2810.9,0.26583658]
[1740316236271,0.8332,2812.1,2810.9,0.26583658]
[1740316236565,0.8332,2811.9,2810.3,1.068982]
[1740316236763,0.8332,2811.8,2810.4,0.27]
[1740316236965,0.8332,2811.7,2810.0,6.1825]
[1740316237176,0.8332,2811.6,2810.4,0.27208715]
[1740316238777,0.8332,2811.5,2810.2,0.26666464]
[1740316239228,0.8332,2811.4,2810.2,0.26666464]
[1740316240066,0.8332,2811.4,2811.3,0.72240406]
[1740316240347,4.5061667,2811.4,2811.3,0.72240406]
[1740316240667,4.95678337,2811.4,2811.3,0.72240406]
[1740316240836,0.8332,2811.3,2810.0,0.54108851]
[1740316241358,0.8332,2811.2,2810.0,0.54108851]
[1740316242073,0.8332,2811.2,2810.1,0.7925]
[1740316242271,0.7748,2812.3,2810.8,0.27020697]
[1740316242479,0.44477667,2812.2,2810.9,3.272]
[1740316243063,0.44477667,2812.2,2811.0,1.068783]
[1740316243385,0.44477667,2812.2,2811.1,0.71962585]
[1740316243592,0.44477667,2812.2,2811.2,0.271]
[1740316245664,0.44477667,2812.2,2811.1,0.71962585]
[1740316245961,0.44477667,2812.2,2811.3,0.271]
[1740316246162,0.44477667,2812.2,2811.4,0.271]
[1740316246395,0.7748,2812.1,2811.2,0.17884089]
[1740316246609,0.7748,2812.1,2811.3,0.271]
[1740316248112,0.7748,2812.1,2812.0,0.71211078]
[1740316250302,0.7748,2812.1,2811.3,0.271]
[1740316250497,0.7748,2812.1,2811.4,0.8274]
[1740316254724,3.99619975,2812.8,2811.4,0.8274]
[1740316254725,0.7806,2812.5,2811.4,0.8274]
[1740316255012,0.7806,2812.5,2812.0,0.72007263]
[1740316256486,0.7806,2812.5,2811.4,0.27]
[1740316256831,0.7806,2812.4,2811.4,0.27]
[1740316256987,0.7806,2812.2,2811.1,3.8329]
[1740316257316,0.7806,2812.2,2811.2,0.27]
[1740316259789,0.7806,2812.2,2811.6,0.26134684]
[1740316260101,0.7306,2812.2,2811.6,0.26134684]
[1740316261239,0.7306,2812.2,2811.2,0.27]
[1740316261516,0.7306,2812.2,2811.1,0.269]
[1740316261724,0.7306,2812.2,2810.7,5.39]
[1740316261907,3.6729667,2812.2,2810.7,5.39]
[1740316262990,4.305,2811.9,2810.2,0.69718497]
[1740316263344,0.7806,2811.5,2810.0,0.26069654]
[1740316263543,0.7806,2811.5,2810.1,0.8329]
[1740316263837,0.7806,2811.5,2810.2,0.8329]
[1740316264993,0.7806,2811.5,2810.3,0.27]
[1740316266828,0.7806,2811.5,2810.4,0.7822]
[1740316267206,0.7806,2811.5,2811.0,0.26093691]
[1740316267826,0.7806,2811.5,2810.6,3.0]
[1740316268693,0.7806,2811.5,2810.5,5.39]
[1740316270358,0.7539,2812.2,2810.6,11.9]
[1740316270645,0.7539,2812.2,2810.9,0.8002]
[1740316270843,0.7539,2812.2,2811.0,0.274]
[1740316271001,0.7539,2812.2,2811.1,0.26866611]
[1740316276549,0.7539,2812.0,2810.2,15.0902]
[1740316276752,0.7539,2811.8,2810.2,15.0902]
[1740316277257,0.7539,2811.8,2810.5,0.27231741]
[1740316280481,0.7539,2811.7,2810.2,5.39]
[1740316281124,0.273,2811.6,2810.2,5.39]
[1740316281325,0.7539,2811.5,2809.9,8.662]
[1740316281525,0.7539,2811.3,2809.9,8.662]
[1740316281949,0.7539,2811.3,2810.0,0.273]
[1740316282347,0.7539,2811.3,2809.9,5.39]
[1740316283659,3.755,2811.2,2809.9,5.39]
[1740316283859,0.7833,2811.2,2809.9,5.65457353]
[1740316284968,0.7833,2811.2,2809.2,15.80908063]
[1740316285170,0.7833,2811.1,2809.3,0.272]
[1740316285337,0.7833,2811.0,2809.3,5.662]
[1740316285847,0.7833,2811.0,2809.4,3.0]
[1740316286045,0.7833,2811.0,2809.5,0.2677264]
[1740316286272,0.7833,2810.8,2809.4,0.273]
[1740316286778,0.7833,2810.8,2809.4,3.0]
[1740316287271,3.6729667,2810.7,2809.1,0.272]
[1740316287450,0.7923,2810.6,2809.1,0.272]
[1740316287639,0.7923,2810.4,2809.1,0.272]
[1740316287838,0.7923,2810.2,2809.2,0.3272]
[1740316288184,0.7923,2810.2,2809.1,0.272]
[1740316291296,0.7923,2810.2,2809.0,3.0]
[1740316295882,0.7923,2810.2,2808.9,5.39]
[1740316296563,0.7923,2810.2,2808.8,0.54005985]
[1740316296564,0.7923,2810.2,2808.8,0.271]
[1740316298005,0.7923,2810.2,2808.4,3.0]
[1740316298202,0.8277,2810.0,2808.5,0.271]
[1740316298399,0.8277,2810.0,2808.4,3.0]
[1740316298600,0.8277,2810.0,2808.5,0.271]
[1740316299329,0.8277,2810.0,2808.4,3.0]
[1740316299481,0.8277,2809.8,2808.4,3.0]
[1740316300818,0.8277,2809.8,2808.4,3.26189797]
[1740316302627,0.8277,2809.8,2808.5,0.7919]
[1740316304608,0.8277,2809.8,2808.4,3.26189797]
[1740316305519,0.8277,2809.8,2808.4,3.53289797]
[1740316306421,0.7837,2809.7,2808.4,0.26189797]
[1740316310531,0.7837,2809.7,2808.4,3.26189797]
[1740316310714,0.7837,2809.7,2808.5,6.1972]
[1740316310919,0.7837,2809.7,2808.6,3.0]
[1740316320753,0.7837,2809.7,2808.8,3.0]
[1740316323857,0.7837,2809.7,2809.2,0.26875166]
[1740316327630,0.7837,2809.7,2809.0,3.268]
[1740316328570,0.7837,2809.7,2809.0,3.0]
[1740316332150,0.7837,2809.7,2809.0,8.39]
[1740316333144,0.7837,2809.7,2809.4,0.26663138]
[1740316333671,0.7837,2809.7,2809.6,0.70852221]
[1740316334457,0.71066061,2809.9,2809.6,0.70852221]
[1740316334661,0.7987,2810.0,2809.4,0.26663138]
[1740316335204,0.7987,2810.0,2809.5,0.267]
[1740316335509,0.7987,2810.0,2809.7,3.0]
[1740316335656,0.7987,2810.4,2809.7,3.0]
[1740316335857,0.7987,2810.4,2809.7,8.39]
[1740316336554,0.7987,2810.4,2809.7,8.657]
[1740316339568,0.7987,2810.4,2809.7,8.39]
[1740316341571,0.7987,2810.4,2809.7,5.39]
[1740316345203,0.7987,2810.4,2809.4,0.26663138]
[1740316345770,0.8301,2810.3,2809.0,5.39]
[1740316345974,0.8301,2810.1,2809.0,5.39]
[1740316346196,0.8301,2810.1,2809.1,0.26182059]
[1740316347209,0.8301,2810.1,2809.0,5.39]
[1740316347408,0.8092,2810.0,2808.7,4.0689]
[1740316347608,0.8092,2809.8,2808.7,4.0689]
[1740316347810,0.8092,2809.8,2808.7,4.0039]
[1740316348317,0.8092,2809.8,2808.9,3.26997241]
[1740316350912,0.8092,2809.8,2809.0,0.8052]
[1740316351619,0.8092,2810.1,2809.0,0.8052]
[1740316351782,0.8092,2810.1,2809.2,0.55]
[1740316352312,0.8092,2810.1,2809.3,8.39]
[1740316353026,0.8092,2810.1,2809.7,0.2730101]
[1740316353908,0.8092,2810.1,2809.4,5.39]
[1740316356935,0.8092,2810.1,2809.5,3.0]
[1740316357231,0.8092,2810.1,2809.6,0.56015152]
[1740316363174,0.8092,2810.1,2809.7,0.27069569]
[1740316366971,0.8092,2810.1,2809.7,5.66069569]
[1740316368441,0.8092,2810.1,2809.8,3.0]
[1740316368954,0.7796,2811.1,2809.8,3.0]
[1740316369156,0.37796,2811.0,2809.8,8.79751724]
[1740316369318,0.7796,2810.9,2809.8,8.79751724]
[1740316370706,0.7796,2810.9,2809.8,9.62491724]
[1740316371017,0.7796,2810.9,2810.0,3.0]
[1740316371218,0.7796,2810.9,2810.2,3.0]
[1740316371446,0.7796,2810.9,2810.3,1.38755152]
[1740316372051,0.7796,2810.9,2810.3,0.56015152]
[1740316373844,0.7796,2811.8,2810.6,0.8274]
[1740316374048,0.7796,2811.8,2810.8,3.81388071]
[1740316374348,0.7796,2811.8,2810.9,0.40751724]
[1740316375154,0.7796,2811.8,2811.0,0.8274]
[1740316375555,0.7796,2811.8,2811.0,0.267]
[1740316378062,0.005,2811.9,2811.1,0.8274]
[1740316378455,0.005,2811.9,2811.3,3.0]
[1740316378659,0.005,2811.9,2811.4,5.95015152]
[1740316381167,0.005,2811.9,2811.6,0.27245243]
[1740316382067,0.005,2811.9,2811.4,5.95015152]
[1740316384064,0.005,2811.9,2811.5,0.7909]
[1740316384367,0.005,2811.9,2811.4,5.95015152]
[1740316384570,0.7573,2811.8,2811.0,5.39]
[1740316384868,0.7573,2811.8,2811.1,3.0]
[1740316387566,0.7573,2811.8,2811.0,8.39]
[1740316387775,0.7573,2811.8,2811.0,17.29]
[1740316388640,0.7573,2811.8,2811.1,0.267]
[1740316389036,0.005,2811.9,2811.3,0.7847]
[1740316390745,0.005,2811.9,2811.6,0.26421916]
[1740316393885,0.005,2811.9,2811.7,5.39]
[1740316400387,0.82,2811.9,2811.7,5.39]
[1740316404195,0.82,2811.9,2811.4,5.39]
[1740316404590,0.82,2811.9,2810.8,0.26388071]
[1740316405594,0.82,2811.9,2810.8,3.24388071]
[1740316410081,0.82,2811.9,2810.8,3.0]
[1740316411413,0.82,2811.9,2810.7,5.39]
[1740316412317,0.82,2811.9,2810.8,3.0]
[1740316414874,0.82,2811.9,2810.8,2.98]
[1740316416993,0.82,2811.9,2810.8,3.7706]
[1740316420516,0.82,2811.9,2810.8,9.1606]
[1740316421921,0.82,2811.9,2811.0,3.7906]
[1740316422120,0.005,2811.9,2811.2,0.7906]
[1740316422326,0.005,2811.9,2811.3,0.38909626]
[1740316422483,0.005,2811.9,2811.5,3.0]
[1740316423017,0.7913,2811.8,2811.5,3.0]
[1740316423194,0.7913,2811.8,2811.4,5.39]
[1740316423878,0.7913,2811.8,2811.0,0.265]
[1740316424411,0.7913,2811.8,2811.0,3.265]
[1740316428393,0.7913,2811.8,2811.1,0.8154]
[1740316428595,0.7913,2811.8,2811.2,0.40804]
[1740316429520,0.7913,2811.8,2811.3,3.0]
[1740316430888,0.7913,2811.8,2811.2,5.39]
[1740316431212,0.7913,2811.8,2810.9,5.39]
[1740316435392,0.7913,2811.8,2810.6,3.27020431]
[1740316436032,0.7913,2811.8,2810.3,5.39]
[1740316436033,0.8319,2811.5,2810.3,5.39]
[1740316436322,0.8319,2811.5,2810.3,5.9554]
[1740316436521,0.8319,2811.5,2810.4,3.0]
[1740316436927,0.8319,2811.5,2810.3,5.39]
[1740316437421,0.8319,2811.5,2810.4,3.0]
[1740316438931,0.8319,2811.2,2809.9,5.39]
[1740316439338,0.8319,2811.1,2809.9,5.39]
[1740316439539,0.8319,2810.9,2810.0,3.0]
[1740316451838,0.8319,2810.9,2810.1,0.8086]
[1740316452233,0.8319,2810.9,2810.1,1.16995209]
[1740316453012,0.8319,2810.9,2810.8,0.72566219]
[1740316453636,0.8149,2811.6,2810.8,0.72566219]
[1740316453830,1.26404995,2811.6,2810.6,1.0762338]
[1740316454626,0.8149,2811.6,2810.6,1.0762338]
[1740316456055,0.5061,2811.6,2810.6,1.0762338]
[1740316456257,0.5061,2811.6,2810.7,5.39]
[1740316457508,0.00363275,2811.7,2810.7,5.39]
[1740316458112,0.55363275,2811.7,2810.3,0.263]
[1740316458337,0.42265995,2811.6,2810.0,6.1986]
[1740316458525,4.09562665,2811.6,2810.1,3.0]
[1740316459150,0.8149,2811.5,2810.1,3.0]
[1740316462117,0.8149,2811.4,2810.1,3.0]
[1740316463217,3.6729667,2811.3,2809.8,5.65518619]
[1740316463533,0.7895,2811.1,2809.9,3.0]
[1740316464353,0.7895,2811.1,2809.8,5.65518619]
[1740316466426,0.7895,2811.1,2809.9,3.0]
[1740316468135,0.7508,2811.0,2809.9,3.0]
[1740316471250,0.7508,2811.0,2810.0,0.7985]
[1740316471457,0.7508,2811.0,2810.1,0.37985]
[1740316472653,0.7508,2811.0,2810.2,0.7985]
[1740316472854,3.6729667,2811.1,2810.2,0.7985]
[1740316473046,0.7508,2811.3,2810.3,3.0]
[1740316473246,0.7508,2811.3,2810.5,0.7985]
[1740316473560,0.7508,2811.3,2810.6,3.0]
[1740316473860,0.7508,2811.3,2810.6,3.58781876]
[1740316474735,0.7508,2811.3,2810.6,3.0]
[1740316475720,0.7508,2811.3,2810.5,5.39]
[1740316477052,0.7508,2811.3,2810.4,0.262]
[1740316477221,0.7508,2811.3,2810.2,3.0]
[1740316482233,0.7508,2811.3,2810.3,0.7985]
[1740316482452,0.7508,2811.3,2810.4,0.37985]
[1740316483460,0.7508,2811.3,2810.2,3.262]
[1740316484333,0.7508,2811.3,2810.2,3.0]
[1740316485668,0.7508,2811.3,2810.1,5.39]
[1740316485834,4.5032667,2811.2,2809.8,1.04898619]
[1740316486031,0.8303,2811.1,2809.8,1.04898619]
[1740316486234,0.8303,2810.9,2809.8,1.04898619]
[1740316491869,0.8303,2810.9,2809.8,0.7838]
[1740316497879,0.8303,2810.9,2809.9,5.39]
[1740316498975,0.8303,2810.9,2810.0,3.0]
[1740316499683,0.8303,2810.9,2810.1,0.8185]
[1740316499848,0.8303,2810.9,2810.2,0.38185]
[1740316500386,0.8303,2810.9,2810.0,3.262]
[1740316508198,0.8303,2810.9,2810.0,3.0]
[1740316509564,0.8303,2810.9,2810.0,8.39]
[1740316515508,0.8303,2810.9,2810.0,3.0]
[1740316517512,0.8303,2810.9,2809.7,0.26360046]
[1740316517513,0.8303,2810.9,2809.4,5.39]
[1740316517714,0.8187,2810.7,2809.4,5.39]
[1740316517915,0.8187,2810.5,2809.0,5.39]
[1740316518102,0.8187,2810.3,2809.0,5.39]
[1740316518311,0.8187,2810.3,2809.1,3.0]
[1740316519020,0.8187,2810.3,2809.0,5.39]
[1740316519441,0.8187,2810.3,2809.1,3.0]
[1740316521185,0.8187,2810.3,2809.0,5.39]
[1740316521385,0.8187,2810.1,2809.0,5.39]
[1740316521585,0.8187,2810.0,2808.8,3.0]
[1740316523287,0.8187,2810.0,2808.4,3.0]
[1740316523490,0.8293,2809.8,2808.4,3.0]
[1740316524885,0.8293,2809.7,2808.3,5.39]
[1740316525221,6.6729667,2809.7,2807.8,6.4149]
[1740316525531,0.8293,2809.6,2807.8,6.4149]
[1740316525825,0.8293,2809.4,2807.9,3.0]
[1740316526603,0.8293,2809.4,2807.9,3.26497884]
[1740316526894,0.8293,2809.3,2807.9,3.26497884]
[1740316528108,0.8293,2809.3,2808.0,0.8082]
[1740316528312,0.8293,2809.3,2808.1,0.55]
[1740316529548,0.8293,2809.3,2807.9,3.52697884]
[1740316529716,0.8293,2809.3,2807.9,3.26497884]
[1740316530444,0.7599,2809.2,2807.9,3.26497884]
[1740316531632,0.7599,2809.2,2808.0,0.8082]
[1740316532530,0.7599,2809.2,2807.9,3.26497884]
[1740316533756,0.7599,2809.2,2808.0,0.55]
[1740316533958,0.7599,2809.2,2808.1,0.38149788]
[1740316535161,0.7599,2809.2,2808.2,0.8082]
[1740316536321,0.7599,2809.2,2808.3,3.0]
[1740316548460,0.7599,2809.2,2808.4,0.8082]
[1740316548675,0.7599,2809.2,2808.4,6.1982]
[1740316548873,0.7599,2809.2,2808.5,0.58617088]
[1740316549487,0.7599,2809.2,2808.5,3.58617088]
[1740316551293,0.7599,2809.2,2808.5,8.97617088]
[1740316551795,0.7599,2809.2,2808.7,0.26855326]
[1740316554467,0.8326,2810.3,2808.9,3.8082]
[1740316554792,0.8326,2810.1,2809.1,3.0]
[1740316556591,0.8326,2810.1,2809.2,0.55]
[1740316557203,0.8326,2810.1,2809.3,0.8082]
[1740316558809,0.8326,2810.1,2809.5,3.0]
[1740316558983,0.8326,2810.1,2809.6,0.26259807]
[1740316559184,0.8326,2810.1,2809.7,0.58617088]
[1740316559771,0.8326,2810.1,2809.8,3.0]
[1740316560296,0.8326,2811.1,2809.8,3.8082]
[1740316560500,0.8326,2811.1,2809.9,5.94]
[1740316560801,0.8326,2811.1,2810.0,3.38149788]
[1740316562095,0.8326,2811.1,2810.1,0.262]
[1740316562893,0.8326,2811.1,2810.0,3.38149788]
[1740316563297,0.8326,2811.1,2810.1,0.55]
[1740316566018,0.8326,2811.1,2810.2,5.39]
[1740316566223,0.8326,2811.1,2810.3,4.13617088]
[1740316567019,0.8326,2811.1,2810.3,5.20513988]
[1740316567164,0.7567,2811.8,2810.6,0.55]
[1740316567485,0.7567,2811.8,2810.8,0.55]
[1740316568108,0.7567,2811.8,2810.8,3.55]
[1740316568262,0.7567,2811.8,2811.0,0.55]
[1740316568463,0.7567,2811.8,2811.0,0.72656956]
[1740316568698,0.7567,2811.8,2811.2,3.55]
[1740316568894,0.7567,2811.8,2811.4,3.0]
[1740316569269,0.005,2811.9,2811.7,0.54086817]
[1740316569669,0.005,2811.9,2811.8,0.35408682]
[1740316569877,0.005,2811.9,2811.8,5.74408682]
[1740316570073,0.005,2811.9,2811.8,18.19408682]
[1740316574178,3.99619975,2812.8,2811.9,3.55]
[1740316574503,3.99619975,2812.8,2812.1,3.55]
[1740316574706,3.99619975,2812.8,2812.1,3.0]
[1740316574911,3.99619975,2812.8,2812.2,0.262]
[1740316575417,3.99619975,2812.8,2812.5,0.7210268]
[1740316575583,3.99619975,2812.8,2812.5,5.39]
[1740316577896,3.99619975,2812.8,2812.5,5.6542693]
[1740316578095,3.99619975,2812.8,2812.5,9.2042693]
[1740316578536,2.92731419,2812.8,2812.6,3.55]
[1740316578846,2.04106138,2812.8,2812.6,3.55]
[1740316579197,0.88625281,2812.8,2812.7,14.29]
[1740316579446,0.88625281,2812.8,2812.7,14.552]
[1740316579936,0.88625281,2812.8,2812.7,15.102]
[1740316580138,0.005,2813.8,2812.8,3.55]
[1740316580430,0.005,2813.8,2813.0,3.0]
[1740316581036,0.005,2813.8,2813.1,0.55]
[1740316581345,0.005,2813.8,2813.0,3.0]
[1740316582036,0.005,2813.8,2813.2,3.0]
[1740316582236,0.005,2813.8,2813.5,1.26005747]
[1740316582408,0.005,2813.8,2813.5,9.65005747]
[1740316582612,0.005,2813.8,2813.5,9.91405747]
[1740316583027,0.005,2813.8,2813.5,9.36405747]
[1740316583743,0.005,2813.8,2813.5,9.91405747]
[1740316583896,0.005,2813.8,2813.5,18.81405747]
[1740316584097,0.01,2813.9,2813.6,0.55]
[1740316585002,0.01,2813.9,2813.6,0.69989]
[1740316585947,0.1498893,2815.4,2814.0,0.1]
[1740316586111,0.1498893,2815.4,2814.9,0.26378166]
[1740316586442,0.0198893,2815.9,2815.2,0.55]
[1740316586629,0.0198893,2815.9,2815.3,0.266]
[1740316586828,0.0198893,2815.9,2815.1,3.0]
[1740316587199,0.0198893,2815.9,2815.0,14.29]
[1740316587200,0.0198893,2815.9,2815.8,0.71352559]